fUST/lending_fUST_20241111
["ID","MTS","AMOUNT","RATE_DAILY","PERIOD"]
[341958642,1731325838629,-7812.21635549,0.00024487,2]
[341958644,1731325838638,-716.62869369,0.00024555,2]
[341958647,1731325838649,-188.95817546,0.00024557,2]
[341958649,1731325838658,-762.46953668,0.00024563,2]
[341958650,1731325838667,-150.0,0.000246,2]
[341958652,1731325838677,-363.32,0.00024647,3]
[341958654,1731325838686,-13804.8047734,0.00024655,2]
[341958656,1731325838696,-151.0,0.00024655,7]
[341958658,1731325838705,-208.940048,0.00024655,7]
[341958660,1731325838714,-151.0,0.00024655,7]
[341958662,1731325838723,-151.0,0.00024655,7]
[341958665,1731325838733,-5895.739835,0.00024655,7]
[341958667,1731325838742,-5895.739835,0.00024655,7]
[341958668,1731325838751,-151.0,0.00024655,7]
[341958671,1731325838760,-181.619543,0.00024655,7]
[341958672,1731325838769,-181.619543,0.00024655,7]
[341958675,1731325838779,-231.448297,0.00024657,7]
[341958676,1731325838788,-151.0,0.00024657,7]
[341958678,1731325838797,-164.844,0.00024657,7]
[341958680,1731325838806,-164.844,0.00024657,7]
[341958683,1731325838816,-164.844,0.00024657,7]
[341958684,1731325838825,-164.844,0.00024657,7]
[341958687,1731325838835,-151.0,0.00024657,7]
[341958688,1731325838845,-151.0,0.00024657,7]
[341958691,1731325838855,-151.0,0.00024657,7]
[341958693,1731325838864,-151.0,0.00024657,7]
[341958694,1731325838873,-500.0,0.00024657,2]
[341958697,1731325838883,-500.0,0.00024657,2]
[341958699,1731325838892,-502.3028869,0.00024657,2]
[341958701,1731325838901,-251.66664638,0.00024657,2]
[341958703,1731325838910,-500.0,0.00024657,2]
[341958705,1731325838920,-151.0,0.00024657,7]
[341958707,1731325838929,-500.0,0.00024657,2]
[341958709,1731325838938,-151.0,0.00024657,7]
[341958711,1731325838947,-255.270216,0.00024657,7]
[341958713,1731325838957,-268.5031432,0.00024657,2]
[341958715,1731325838966,-500.0,0.00024657,2]
[341958717,1731325838976,-500.0,0.00024657,2]
[341958719,1731325838985,-500.0,0.00024657,2]
[341958721,1731325838994,-480.27349667,0.00024657,2]
[341958723,1731325839003,-500.0,0.00024657,2]
[341958725,1731325839012,-544.28776872,0.00024657,2]
[341958727,1731325839022,-529.9885203,0.00024657,2]
[341958729,1731325839031,-151.0,0.00024657,7]
[341958731,1731325839040,-151.0,0.00024657,7]
[341958733,1731325839050,-151.94379,0.00024657,7]
[341958734,1731325839059,-500.0,0.00024657,2]
[341958736,1731325839072,-500.0,0.00024657,2]
[341958739,1731325839081,-500.0,0.00024657,2]
[341958740,1731325839091,-396.30609058,0.00024657,2]
[341958742,1731325839101,-500.0,0.00024657,2]
[341958744,1731325839111,-500.0,0.00024657,2]
[341958746,1731325839120,-517.91652683,0.00024657,2]
[341958748,1731325839129,-500.0,0.00024657,2]
[341958764,1731325839264,-151.0,0.00024657,7]
[341958766,1731325839274,-151.0,0.00024657,7]
[341958768,1731325839283,-151.0,0.00024657,7]
[341958770,1731325839293,-151.0,0.00024657,7]
[341958772,1731325839302,-151.0,0.00024657,7]
[341958775,1731325839311,-151.0,0.00024657,7]
[341958777,1731325839321,-151.0,0.00024657,7]
[341958778,1731325839330,-285.369219,0.00024657,7]
[341958781,1731325839340,-500.0,0.00024657,2]
[341958783,1731325839349,-151.0,0.00024657,7]
[341958785,1731325839360,-218.792614,0.00024657,7]
[341958787,1731325839370,-505.63909232,0.00024657,2]
[341958789,1731325839379,-500.0,0.00024657,2]
[341958790,1731325839388,-500.0,0.00024657,2]
[341958793,1731325839398,-500.0,0.00024657,2]
[341958794,1731325839408,-500.0,0.00024657,2]
[341958797,1731325839418,-519.59720639,0.00024657,2]
[341958799,1731325839427,-151.0,0.00024657,7]
[341958801,1731325839437,-500.0,0.00024657,2]
[341958803,1731325839447,-510.64222441,0.00024657,2]
[341958805,1731325839456,-414.84633381,0.00024657,2]
[341958807,1731325839466,-500.0,0.00024657,2]
[341958809,1731325839476,-500.0,0.00024657,2]
[341958811,1731325839485,-151.0,0.00024657,7]
[341958813,1731325839495,-151.0,0.00024657,7]
[341958815,1731325839504,-260.072804,0.00024657,7]
[341958817,1731325839513,-205.906167,0.00024657,7]
[341958819,1731325839523,-500.0,0.00024657,2]
[341958821,1731325839532,-512.17954047,0.00024657,2]
[341958823,1731325839541,-278.49569604,0.00024657,2]
[341958825,1731325839550,-153.35085577,0.00024657,2]
[341958827,1731325839559,-544.08996321,0.00024657,2]
[341958829,1731325839568,-151.0,0.00024657,7]
[341958831,1731325839577,-151.0,0.00024657,7]
[341958833,1731325839586,-500.0,0.00024657,2]
[341958835,1731325839596,-151.0,0.00024657,7]
[341958837,1731325839605,-151.0,0.00024657,7]
[341958839,1731325839614,-259.657471,0.00024657,7]
[341958841,1731325839623,-515.55135751,0.00024657,2]
[341958843,1731325839632,-500.0,0.00024657,2]
[341958845,1731325839642,-500.0,0.00024657,2]
[341958847,1731325839651,-500.0,0.00024657,2]
[341958850,1731325839662,-307.19604941,0.00024657,2]
[341958852,1731325839671,-500.0,0.00024657,2]
[341958855,1731325839680,-224.54473026,0.00024657,2]
[341958856,1731325839689,-151.0,0.00024657,7]
[341958857,1731325839698,-151.0,0.00024657,7]
[341958858,1731325839707,-151.0,0.00024657,7]
[341958859,1731325839716,-151.0,0.00024657,7]
[341958860,1731325839726,-151.0,0.00024657,7]
[341958861,1731325839738,-151.0,0.00024657,7]
[341958862,1731325839748,-151.0,0.00024657,7]
[341958863,1731325839757,-500.0,0.00024657,2]
[341958864,1731325839766,-188.33588,0.00024657,7]
[341958865,1731325839776,-500.0,0.00024657,2]
[341958866,1731325839794,-500.0,0.00024657,2]
[341958867,1731325839805,-500.0,0.00024657,2]
[341958868,1731325839814,-168.845892,0.00024657,7]
[341958869,1731325839823,-500.0,0.00024657,2]
[341958870,1731325839832,-500.0,0.00024657,2]
[341958871,1731325839843,-500.0,0.00024657,2]
[341958872,1731325839851,-500.0,0.00024657,2]
[341958873,1731325839860,-500.0,0.00024657,2]
[341958874,1731325839869,-500.0,0.00024657,2]
[341958876,1731325839879,-5895.739835,0.00024657,7]
[341958878,1731325839888,-5895.739835,0.00024657,7]
[341958880,1731325839897,-2415.55,0.00024657,2]
[341958882,1731325839910,-5895.739835,0.00024657,7]
[341958884,1731325839919,-5895.739835,0.00024657,7]
[341958886,1731325839929,-500.0,0.00024657,2]
[341958887,1731325839938,-5895.739835,0.00024657,7]
[341958889,1731325839947,-5895.739835,0.00024657,7]
[341958891,1731325839956,-5895.739835,0.00024657,7]
[341958893,1731325839965,-5895.739835,0.00024657,7]
[341958895,1731325839975,-5895.739835,0.00024657,7]
[341958897,1731325839984,-5895.739835,0.00024657,7]
[341958899,1731325839993,-5895.739835,0.00024657,7]
[341958901,1731325840003,-5895.739835,0.00024657,7]
[341958903,1731325840012,-5895.739835,0.00024657,7]
[341958905,1731325840021,-5895.739835,0.00024657,7]
[341958907,1731325840030,-5895.739835,0.00024657,7]
[341958909,1731325840039,-5895.739835,0.00024657,7]
[341958911,1731325840049,-5895.739835,0.00024657,7]
[341958913,1731325840059,-5895.739834,0.00024657,7]
[341958915,1731325840071,-500.0,0.00024657,2]
[341958917,1731325840082,-500.0,0.00024657,2]
[341958920,1731325840093,-500.0,0.00024657,2]
[341958921,1731325840104,-500.0,0.00024657,2]
[341958923,1731325840114,-500.0,0.00024657,2]
[341958925,1731325840123,-500.0,0.00024657,2]
[341958928,1731325840133,-500.0,0.00024657,2]
[341958930,1731325840144,-500.0,0.00024657,2]
[341958932,1731325840153,-181.619543,0.00024657,7]
[341958934,1731325840163,-500.0,0.00024657,2]
[341958936,1731325840172,-181.619543,0.00024657,7]
[341958938,1731325840182,-181.619543,0.00024657,7]
[341958940,1731325840191,-181.619543,0.00024657,7]
[341958942,1731325840201,-181.619543,0.00024657,7]
[341958944,1731325840211,-500.0,0.00024657,2]
[341958946,1731325840220,-181.619543,0.00024657,7]
[341958948,1731325840230,-181.619543,0.00024657,7]
[341958950,1731325840240,-181.619543,0.00024657,7]
[341958952,1731325840250,-181.619543,0.00024657,7]
[341958954,1731325840259,-181.619543,0.00024657,7]
[341958956,1731325840269,-255.83976836,0.00024658,2]
[341958958,1731325840279,-500.0,0.00024673,2]
[341958960,1731325840288,-500.0,0.00024673,2]
[341958962,1731325840297,-151.0,0.00024673,7]
[341958964,1731325840307,-181.619543,0.00024673,7]
[341958966,1731325840316,-181.619543,0.00024673,7]
[341958968,1731325840326,-153.0,0.00024685,2]
[341958970,1731325840335,-153.0,0.00024685,2]
[341958972,1731325840346,-153.0,0.00024685,2]
[341958974,1731325840355,-153.0,0.00024685,2]
[341958976,1731325840364,-2319.86,0.000247,2]
[341958978,1731325840373,-151.0,0.000247,7]
[341958980,1731325840383,-151.0,0.000247,7]
[341958982,1731325840392,-153.0,0.000247,2]
[341958984,1731325840401,-153.0,0.000247,2]
[341958986,1731325840411,-153.0,0.000247,2]
[341958988,1731325840420,-665.105629,0.00024832,2]
[341958990,1731325840429,-1002.29179511,0.0002487,2]
[341958992,1731325840438,-164.844,0.0002487,7]
[341958994,1731325840447,-164.844,0.0002487,7]
[341958996,1731325840456,-151.0,0.0002487,7]
[341958998,1731325840465,-181.619543,0.0002487,7]
[341959000,1731325840474,-181.619543,0.00024891,7]
[341959002,1731325840484,-311.0959169,0.000249,2]
[341959004,1731325840493,-153.0,0.000249,2]
[341959006,1731325840503,-153.0,0.000249,2]
[341959008,1731325840512,-153.0,0.000249,2]
[341959010,1731325840521,-153.0,0.000249,2]
[341959012,1731325840530,-153.0,0.000249,2]
[341959014,1731325840539,-151.0,0.00024901,7]
[341959016,1731325840549,-500.0,0.0002493,2]
[341959018,1731325840558,-567.05339953,0.0002493,2]
[341959020,1731325840567,-164.844,0.00024931,7]
[341959022,1731325840576,-164.844,0.00024931,7]
[341959024,1731325840585,-151.0,0.00024931,7]
[341959026,1731325840595,-151.0,0.00024931,7]
[341959028,1731325840604,-308.19,0.00024931,2]
[341959030,1731325840613,-648.29,0.00024931,2]
[341959032,1731325840622,-500.0,0.00024931,2]
[341959034,1731325840632,-179.17,0.00024931,2]
[341959036,1731325840641,-500.0,0.00024931,2]
[341959038,1731325840650,-512.35594706,0.00024931,2]
[341959040,1731325840659,-509.1738809,0.00024931,2]
[341959042,1731325840668,-500.0,0.00024931,2]
[341959044,1731325840678,-500.0,0.00024931,2]
[341959046,1731325840687,-500.0,0.00024931,2]
[341959048,1731325840696,-500.0,0.00024931,2]
[341959050,1731325840705,-500.0,0.00024931,2]
[341959052,1731325840714,-256.71522519,0.00024931,2]
[341959054,1731325840723,-2415.55,0.00024931,2]
[341959056,1731325840732,-500.0,0.00024931,2]
[341959058,1731325840741,-516.02,0.00024931,2]
[341959060,1731325840750,-359.69,0.00024931,2]
[341959062,1731325840759,-500.0,0.00024931,2]
[341959064,1731325840768,-500.0,0.00024931,2]
[341959066,1731325840776,-181.619543,0.00024931,7]
[341959068,1731325840786,-500.0,0.00024931,2]
[341959070,1731325840795,-500.0,0.00024973,2]
[341959072,1731325840805,-164.844,0.00025205,7]
[341959074,1731325840814,-164.844,0.00025205,7]
[341959076,1731325840823,-151.0,0.00025205,7]
[341959078,1731325840832,-151.0,0.00025205,7]
[341959080,1731325840840,-482.84220301,0.00025205,2]
[341959082,1731325840850,-500.0,0.00025205,2]
[341959084,1731325840859,-500.0,0.00025205,2]
[341959086,1731325840868,-500.0,0.00025205,2]
[341959088,1731325840877,-500.0,0.00025205,2]
[341959090,1731325840886,-2415.55,0.00025205,2]
[341959092,1731325840895,-500.0,0.00025205,2]
[341959094,1731325840905,-500.0,0.00025205,2]
[341959096,1731325840914,-500.0,0.00025205,2]
[341959098,1731325840923,-500.0,0.00025205,2]
[341959100,1731325840932,-500.0,0.00025272,2]
[341959102,1731325840941,-420.0,0.00025289,2]
[341959104,1731325840950,-500.0,0.00025305,2]
[341959106,1731325840959,-500.0,0.00025305,2]
[341959108,1731325840968,-500.0,0.00025305,2]
[341959111,1731325840977,-164.844,0.00025479,7]
[341959112,1731325840986,-164.844,0.00025479,7]
[341959115,1731325840996,-151.0,0.00025479,7]
[341959117,1731325841005,-151.0,0.00025479,7]
[341959119,1731325841014,-500.0,0.00025479,2]
[341959121,1731325841023,-500.0,0.00025479,2]
[341959122,1731325841032,-500.0,0.00025479,2]
[341959125,1731325841042,-500.0,0.00025479,2]
[341959127,1731325841050,-2415.55,0.00025479,2]
[341959128,1731325841060,-500.0,0.00025479,2]
[341959131,1731325841071,-500.0,0.00025479,2]
[341959132,1731325841080,-500.0,0.00025479,2]
[341959134,1731325841089,-500.0,0.00025479,2]
[341959137,1731325841101,-153.0,0.00025479,2]
[341959139,1731325841111,-153.0,0.00025479,2]
[341959140,1731325841119,-153.0,0.00025479,2]
[341959142,1731325841128,-716.62869369,0.00025488,2]
[341959144,1731325841138,-162.62488,0.00025544,2]
[341959147,1731325841148,-162.62488,0.00025544,2]
[341959149,1731325841158,-162.62488,0.00025594,2]
[341959151,1731325841166,-162.62488,0.00025594,2]
[341959153,1731325841176,-420.0,0.00025633,2]
[341959155,1731325841185,-400.6602712,0.00025644,2]
[341959157,1731325841195,-151.0,0.00025653,7]
[341959159,1731325841203,-202.522326,0.00025653,7]
[341959161,1731325841213,-164.844,0.00025663,7]
[341959162,1731325841222,-164.844,0.00025663,7]
[341959164,1731325841231,-151.0,0.00025663,7]
[341959167,1731325841240,-164.844,0.00025673,7]
[341959168,1731325841249,-164.844,0.00025673,7]
[341959170,1731325841258,-151.0,0.00025673,7]
[341959173,1731325841268,-164.844,0.00025683,7]
[341959174,1731325841278,-164.844,0.00025683,7]
[341959177,1731325841287,-162.62488,0.00025703,2]
[341959178,1731325841296,-162.62488,0.00025703,2]
[341959181,1731325841306,-150.0,0.00025709,2]
[341959182,1731325841315,-530.0,0.00025709,2]
[341959184,1731325841324,-1127.0,0.00025709,2]
[341959187,1731325841333,-2391.0,0.00025709,2]
[341959189,1731325841343,-164.844,0.00025753,7]
[341959191,1731325841352,-164.844,0.00025753,7]
[341959193,1731325841360,-151.0,0.00025753,7]
[341959194,1731325841369,-172.09,0.00025753,2]
[341959197,1731325841378,-500.0,0.00025753,2]
[341959198,1731325841388,-500.0,0.00025753,2]
[341959201,1731325841397,-500.0,0.00025753,2]
[341959203,1731325841406,-2415.55,0.00025753,2]
[341959204,1731325841416,-500.0,0.00025753,2]
[341959206,1731325841425,-365.06,0.00025753,2]
[341959208,1731325841434,-500.0,0.00025753,2]
[341959210,1731325841444,-500.0,0.00025753,2]
[341959212,1731325841454,-500.0,0.00025827,2]
[341959214,1731325841463,-162.62488,0.00025915,2]
[341959217,1731325841472,-162.62488,0.00025915,2]
[341959218,1731325841481,-3939.0,0.00025936,4]
[341959221,1731325841491,-500.0,0.00026027,2]
[341959223,1731325841500,-636.9912906,0.00026027,2]
[341959225,1731325841509,-500.0,0.00026027,2]
[341959226,1731325841518,-2415.55,0.00026027,2]
[341959228,1731325841527,-535.14,0.00026027,2]
[341959230,1731325841537,-251.94,0.00026027,2]
[341959232,1731325841546,-419.64,0.00026027,2]
[341959234,1731325841555,-1000.0,0.00026042,2]
[341959236,1731325841564,-273.09216893,0.00026042,2]
[341959238,1731325841574,-576.64007083,0.00026077,2]
[341959241,1731325841584,-500.0,0.00026301,2]
[341959242,1731325841594,-594.18913295,0.00026301,2]
[341959245,1731325841604,-2415.55,0.00026301,2]
[341959246,1731325841614,-1000.0,0.00026342,2]
[341959249,1731325841623,-716.62869369,0.00026422,2]
[341959251,1731325841633,-398.10370585,0.00026575,2]
[341959253,1731325841642,-2415.55,0.00026575,2]
[341959255,1731325841651,-1000.0,0.00026642,2]
[341959257,1731325841660,-1000.0,0.00026675,2]
[341959258,1731325841670,-1000.0,0.00026675,2]
[341959260,1731325841679,-1000.0,0.00026675,2]
[341959263,1731325841690,-162.62488,0.00026684,2]
[341959264,1731325841699,-162.62488,0.00026684,2]
[341959266,1731325841708,-1911.66220841,0.00026848,2]
[341959268,1731325841717,-850.46,0.00026849,2]
[341959270,1731325841727,-2415.55,0.00026849,2]
[341959272,1731325841736,-217.397258,0.00026921,2]
[341959274,1731325841745,-2007.35717248,0.00027,2]
[341959276,1731325841755,-2415.55,0.00027123,2]
[341959278,1731325841764,-500.0,0.00027197,2]
[341959280,1731325841773,-1002.0,0.000272,20]
[341959282,1731325841782,-2415.55,0.00027397,2]
[341959284,1731325841792,-151.0,0.00027397,2]
[341959287,1731325841802,-151.0,0.00027397,2]
[341959289,1731325841811,-151.0,0.00027397,2]
[341959291,1731325841820,-151.0,0.00027397,2]
[341959293,1731325841829,-151.0,0.00027397,2]
[341959294,1731325841838,-151.0,0.00027397,2]
[341959297,1731325841849,-151.0,0.00027397,2]
[341959299,1731325841858,-151.0,0.00027397,2]
[341959301,1731325841867,-151.0,0.00027397,2]
[341959302,1731325841876,-151.0,0.00027397,2]
[341959304,1731325841886,-151.0,0.00027397,2]
[341959306,1731325841895,-151.0,0.00027397,2]
[341959309,1731325841905,-151.0,0.00027397,2]
[341959310,1731325841914,-151.0,0.00027397,2]
[341959313,1731325841923,-151.0,0.00027397,2]
[341959315,1731325841932,-271.4346,0.00027397,2]
[341959316,1731325841942,-587.0,0.00027444,2]
[341959318,1731325841951,-377.39047031,0.00027543,7]
[341959321,1731325841961,-162.62488,0.00027671,2]
[341959323,1731325841971,-162.62488,0.00027671,2]
[341959324,1731325841980,-2415.55,0.00027671,2]
[341959326,1731325841989,-159.361,0.000278,30]
[341959328,1731325841997,-2500.0,0.0002791,3]
[341959330,1731325842007,-2500.0,0.00027919,3]
[341959332,1731325842017,-2500.0,0.00027927,3]
[341959334,1731325842026,-2500.0,0.00027936,3]
[341959336,1731325842035,-2500.0,0.00027945,3]
[341959338,1731325842045,-2500.0,0.00027945,3]
[341959340,1731325842054,-162.62488,0.00027945,2]
[341959342,1731325842064,-162.62488,0.00027945,2]
[341959344,1731325842074,-805.37365952,0.00027945,3]
[341959347,1731325842084,-2415.55,0.00027945,2]
[341959349,1731325842095,-1000.0,0.00028,7]
[341959351,1731325842104,-587.0,0.00028196,2]
[341959352,1731325842114,-2415.55,0.00028219,2]
[341959355,1731325842123,-2415.55,0.00028493,2]
[341959357,1731325842133,-3939.0,0.0002853,7]
[341959359,1731325842143,-1500.0,0.00028547,5]
[341959361,1731325842152,-150.0,0.00028709,2]
[341959362,1731325842161,-530.0,0.00028709,2]
[341959365,1731325842170,-1127.0,0.00028709,2]
[341959367,1731325842179,-2391.0,0.00028709,2]
[341959369,1731325842189,-162.62488,0.00028767,2]
[341959371,1731325842198,-162.62488,0.00028767,2]
[341959373,1731325842208,-2415.55,0.00028767,2]
[341959375,1731325842217,-600.0,0.000288,2]
[341959388,1731325842327,-1500.0,0.00028847,5]
[341959390,1731325842337,-500.0,0.00029,30]
[341959391,1731325842347,-2415.55,0.00029041,2]
[341959394,1731325842357,-1500.0,0.00029147,5]
[341959396,1731325842366,-1500.0,0.00029179,2]
[341959397,1731325842375,-1500.0,0.00029179,5]
[341959400,1731325842385,-12270.86038631,0.00029205,2]
[341959402,1731325842394,-2415.55,0.00029315,2]
[341959404,1731325842403,-159.383,0.00029343,120]
[341959405,1731325842412,-615.0,0.000294,2]
[341959408,1731325842422,-162.62488,0.00029589,2]
[341959410,1731325842431,-162.62488,0.00029589,2]
[341959412,1731325842441,-850.46,0.00029589,4]
[341959414,1731325842450,-2415.55,0.00029589,2]
[341959416,1731325842460,-823.0,0.00029782,2]
[341959418,1731325842469,-2415.55,0.00029863,2]
[341959420,1731325842480,-500.0,0.00029973,5]
[341959422,1731325842489,-500.0,0.00029973,5]
[341959424,1731325842498,-500.0,0.00029973,5]
[341959426,1731325842507,-500.0,0.00029973,5]
[341959428,1731325842516,-500.0,0.00029973,5]
[341959430,1731325842526,-500.0,0.00029973,5]
[341959432,1731325842535,-248.93589586,0.00029973,5]
[341959434,1731325842544,-500.0,0.00029973,5]
[341959436,1731325842553,-500.0,0.00029973,5]
[341959438,1731325842563,-500.0,0.00029999,2]
[341959440,1731325842572,-246.39084979,0.00029999,2]
[341959442,1731325842581,-371.47681705,0.00029999,2]
[341959445,1731325842590,-291.94216586,0.00029999,2]
[341959447,1731325842600,-500.0,0.00029999,2]
[341959449,1731325842609,-500.0,0.00029999,2]
[341959450,1731325842618,-551.2426063,0.00029999,2]
[341959452,1731325842627,-343.69332764,0.00029999,2]
[341959454,1731325842636,-158.99672126,0.00029999,2]
[341959456,1731325842645,-1125093.97480166,0.0003,5]
[341959459,1731325842655,-3111.67169918,0.0003,120]
[341959461,1731325842664,-992.78582971,0.0003,10]
[341959463,1731325842674,-250.0,0.0003,120]
[341959465,1731325842683,-28106.89799665,0.0003,2]
[341959467,1731325842693,-308855.27511581,0.0003,2]
[341959469,1731325842703,-572.4845903,0.0003,2]
[341959472,1731325842712,-151.0,0.0003,120]
[341959474,1731325842721,-218.25,0.0003,30]
[341959476,1731325842731,-3460.51,0.0003,30]
[341959480,1731325842740,-8321.27758325,0.0003,60]
[341959482,1731325842749,-771.54,0.0003,14]
[341959484,1731325842758,-14807.07,0.0003,14]
[341959486,1731325842767,-1833.92,0.0003,30]
[341959488,1731325842776,-1009.81210025,0.0003,30]
[341959490,1731325842786,-173.51,0.0003,2]
[341959492,1731325842796,-162.62488,0.0003,2]
[341959495,1731325842806,-162.624877,0.0003,2]
[341959496,1731325842816,-164.4135,0.0003,2]
[341959498,1731325842825,-1078.25687355,0.0003,30]
[341959500,1731325842835,-150.09,0.0003,5]
[341959502,1731325842844,-302.84859387,0.0003,2]
[341959504,1731325842854,-237.0,0.0003,2]
[341959507,1731325842863,-302.8183302,0.0003,2]
[341959511,1731325842872,-274.11608275,0.0003,2]
[341959513,1731325842882,-310.0856092,0.0003012,120]
[341959517,1731325842891,-7483.3274517,0.0003013,7]
[341959519,1731325842901,-1000.0,0.00030136,30]
[341959521,1731325842910,-1000.0,0.00030136,30]
[341959523,1731325842919,-1000.0,0.00030136,30]
[341959525,1731325842928,-675.02328602,0.00030136,30]
[341959527,1731325842937,-500.0,0.00030136,7]
[341959529,1731325842946,-500.0,0.00030136,2]
[341959531,1731325842955,-500.0,0.00030136,2]
[341959533,1731325842964,-224.65965987,0.00030136,2]
[341959534,1731325842974,-990.76,0.00030136,120]
[341959537,1731325842983,-990.76,0.00030136,120]
[341959539,1731325842992,-990.76,0.00030136,120]
[341959541,1731325843002,-990.76,0.00030136,120]
[341959542,1731325843011,-990.76,0.00030136,120]
[341959544,1731325843020,-990.76,0.00030136,120]
[341959546,1731325843030,-990.76,0.00030136,120]
[341959549,1731325843039,-990.76,0.00030136,120]
[341959551,1731325843048,-990.76,0.00030136,120]
[341959552,1731325843057,-990.76,0.00030136,120]
[341959554,1731325843070,-990.76,0.00030136,120]
[341959556,1731325843080,-990.76,0.00030136,120]
[341959559,1731325843089,-990.76,0.00030136,120]
[341959560,1731325843100,-990.76,0.00030136,120]
[341959563,1731325843112,-990.76,0.00030136,120]
[341959565,1731325843121,-990.76,0.00030136,120]
[341959567,1731325843130,-990.76,0.00030136,120]
[341959569,1731325843139,-990.76,0.00030136,120]
[341959571,1731325843151,-990.76,0.00030136,120]
[341959573,1731325843160,-990.76,0.00030136,120]
[341959575,1731325843169,-990.76,0.00030136,120]
[341959577,1731325843178,-500.0,0.00030136,31]
[341959579,1731325843187,-500.0,0.00030136,31]
[341959580,1731325843196,-500.0,0.00030136,31]
[341959582,1731325843206,-500.0,0.00030136,31]
[341959584,1731325843215,-502.06010314,0.00030136,31]
[341959586,1731325843224,-2415.55,0.00030136,2]
[341959588,1731325843235,-500.0,0.00030137,5]
[341959591,1731325843244,-150.09,0.00030137,2]
[341959593,1731325843254,-500.0,0.0003017,3]
[341959594,1731325843263,-500.0,0.00030235,3]
[341959596,1731325843273,-500.0,0.0003024,11]
[341959599,1731325843282,-150.09,0.00030274,5]
[341959600,1731325843291,-302.84859387,0.000303,2]
[341959602,1731325843301,-302.8183302,0.000303,2]
[341959604,1731325843310,-200.0,0.000304,120]
[341959606,1731325843320,-990.76,0.0003041,120]
[341959608,1731325843329,-2415.55,0.0003041,2]
[341959610,1731325843339,-500.0,0.00030411,5]
[341959612,1731325843351,-1999.0,0.00030438,2]
[341959614,1731325843360,-1999.0,0.00030438,2]
[341959616,1731325843370,-2041.368862,0.00030438,2]
[341959618,1731325843379,-500.0,0.00030491,3]
[341959620,1731325843389,-4000.0,0.000305,2]
[341959621,1731325843398,-150.09,0.00030548,5]
[341959622,1731325843408,-152.55440133,0.00030559,2]
[341959623,1731325843417,-302.84859387,0.000306,2]
[341959624,1731325843426,-302.8183302,0.000306,2]
[341959625,1731325843436,-187.79060327,0.0003065,2]
[341959626,1731325843445,-990.76,0.00030684,120]
[341959627,1731325843455,-2415.55,0.00030684,2]
[341959628,1731325843464,-500.0,0.00030685,5]
[341959629,1731325843473,-152.55440133,0.00030691,2]
[341959630,1731325843482,-300.0,0.000307,3]
[341959631,1731325843492,-4689.11447072,0.0003077,2]
[341959632,1731325843502,-1334.56,0.000308,14]
[341959633,1731325843512,-500.0,0.00030808,3]
[341959634,1731325843522,-182.94616153,0.00030822,5]
[341959635,1731325843531,-152.55440133,0.00030823,2]
[341959636,1731325843541,-302.84859387,0.000309,2]
[341959637,1731325843550,-302.8183302,0.000309,2]
[341959639,1731325843559,-48581.49503353,0.000309,7]
[341959641,1731325843568,-152.55440133,0.00030955,2]